fUSD/lending_fUSD_20260115
["ID","MTS","AMOUNT","RATE_DAILY","PERIOD"]
[402041377,1768489861619,-1139.48,0.00039178,30]
[402041378,1768489861629,-674.29,0.00039178,30]
[402041379,1768489861639,-1640.33,0.00039178,30]
[402041380,1768489861649,-500.0,0.00039178,30]
[402041381,1768489861659,-500.0,0.00039178,30]
[402041382,1768489861669,-1049.54,0.00039178,30]
[402041383,1768489861679,-614.26,0.00039178,30]
[402041384,1768489861689,-571.97,0.00039178,30]
[402041385,1768489861699,-1240.24,0.00039178,30]
[402041386,1768489861710,-989.15855907,0.00039178,30]
[402041387,1768489861723,-219.69144093,0.00039178,30]
[402041388,1768489861733,-500.0,0.00039178,30]
[402041389,1768489861743,-500.0,0.00039178,30]
[402041390,1768489861754,-699.87,0.00039178,30]
[402041391,1768489861764,-1068.16550581,0.00039178,30]
[402041392,1768489861790,-310.28449419,0.00039178,30]
[402041393,1768489861801,-653.44,0.00039178,30]
[402041394,1768489861812,-1305.66,0.00039178,30]
[402041395,1768489861822,-526.4,0.00039178,30]
[402041396,1768489861832,-1357.86,0.00039178,30]
[402041397,1768489861842,-1187.67,0.00039178,30]
[402041398,1768489861852,-500.0,0.00039178,30]
[402041399,1768489861863,-548.87403223,0.00039178,30]
[402041400,1768489861872,-184.4714516,0.00039178,30]
[402041401,1768489861903,-343.3185484,0.00039178,30]
[402041402,1768489861913,-500.0,0.00039178,30]
[402041403,1768489861922,-509.13,0.00039178,30]
[402041404,1768489861932,-500.0,0.00039178,30]
[402041405,1768489861942,-500.0,0.00039178,30]
[402041406,1768489861953,-500.0,0.00039178,30]
[402041407,1768489861962,-500.0,0.00039178,30]
[402041408,1768489861973,-593.84,0.00039178,30]
[402041409,1768489861987,-500.0,0.00039178,30]
[402041410,1768489861996,-707.93,0.00039178,30]
[402041411,1768489862006,-686.94,0.00039178,30]
[402041412,1768489862015,-500.0,0.00039178,30]
[402041413,1768489862027,-603.11,0.00039178,30]
[402041414,1768489862037,-500.0,0.00039178,30]
[402041415,1768489862046,-1149.71,0.00039178,30]
[402041416,1768489862056,-500.0,0.00039178,30]
[402041417,1768489862066,-1004.0214516,0.00039178,30]
[402041419,1768490150828,-300.0,0.00016972,2]
[402041420,1768490150851,-500.0,0.00016973,2]
[402041421,1768490150875,-500.0,0.00016973,2]
[402041422,1768490150898,-502.82019791,0.00016973,2]
[402041423,1768490150922,-500.0,0.00016973,2]
[402041424,1768490150946,-219.93171436,0.00017099,2]
[402041425,1768490150971,-214.0,0.00017099,2]
[402041426,1768490151005,-795162.2731,0.000171,2]
[402041427,1768490151028,-500.0,0.00017199,2]
[402041428,1768490151052,-500.0,0.00017199,2]
[402041429,1768490151078,-511.94601024,0.00017199,2]
[402041430,1768490151101,-500.0,0.00017199,2]
[402041431,1768490151128,-232.35262278,0.00017199,2]
[402041432,1768490151153,-277.02771789,0.00017521,2]
[402041433,1768490151177,-500.0,0.00017521,2]
[402041434,1768490151200,-621.88276305,0.0001863,2]
[402041435,1768490246488,-549.42963918,0.00016973,2]
[402041436,1768490246512,-500.0,0.00016973,2]
[402041437,1768490246535,-500.0,0.00017521,2]
[402041438,1768490346119,478.30343234,0.00016973,2]
[402041439,1768490346294,500.0,0.00017521,2]
[402041440,1768490350618,500.0,0.00016973,2]
[402041441,1768490379171,500.0,0.00017199,2]
[402041442,1768490379228,500.0,0.00017199,2]
[402041443,1768490388394,3412.8666051,0.00017629,2]
[402041444,1768490401046,500.0,0.00017199,2]
[402041445,1768490446096,500.0,0.00017199,2]
[402041446,1768490446390,500.0,0.00017199,2]
[402041447,1768490473558,2694.9107874,0.00017629,2]
[402041448,1768490583632,500.0,0.00016973,2]
[402041450,1768490707936,987864.48953598,0.00018,2]
[402041451,1768490727982,1215.62,0.00030137,120]
[402041456,1768490859112,-155.71,0.00013437,2]
[402041457,1768490859137,-12824.78192462,0.000162,5]
[402041458,1768490859162,-2607.3760723,0.00017617,2]
[402041459,1768490859188,-2019.99331066,0.00017617,2]
[402041460,1768490859213,-1478.00503332,0.00017617,2]
[402041461,1768490859237,-988.01077698,0.00017617,2]
[402041462,1768490859263,-554.4495,0.00017617,2]
[402041463,1768490859288,-178.83875057,0.00017999,5]
[402041464,1768490859312,-202.50916157,0.00017999,2]
[402041465,1768490859337,-299.3374651,0.00017999,2]
[402041466,1768490859363,-500.0,0.00017999,2]
[402041467,1768490859386,-451.08796428,0.00017999,2]
[402041468,1768490859410,-500.0,0.00017999,2]
[402041469,1768490859434,-240.28308858,0.00017999,2]
[402041470,1768490859457,-500.0,0.00017999,2]
[402041471,1768490859485,-976499.61695202,0.00018,2]
[402041512,1768491032264,-2241.65903586,0.00016,4]
[402041514,1768491032434,-9189.46928604,0.00016,4]
[402041515,1768491032443,-250.0,0.00016848,2]
[402041516,1768491032452,-626.97227841,0.00017199,2]
[402041518,1768491032462,-250.0,0.00017461,2]
[402041520,1768491032471,-250.0,0.000176,2]
[402041521,1768491032480,-34202.69557496,0.00017695,2]
[402041522,1768491032492,-865.0,0.00017695,2]
[402041539,1768491038433,-2501.0176231,0.00017695,2]
[402041540,1768491038444,-1957.65318945,0.00017695,2]
[402041541,1768491038457,-970.85482822,0.00017695,2]
[402041542,1768491038480,-2203.26401752,0.00017695,2]
[402041543,1768491038491,-675.88496175,0.00017695,2]
[402041544,1768491038500,-1586.36311623,0.00017712,2]
[402041545,1768491038511,-12410.82138958,0.00017712,2]
[402041546,1768491038523,-1311.23277233,0.00017712,2]
[402041547,1768491038534,-1297.21845505,0.00017712,2]
[402041548,1768491038543,-6426.35619784,0.00017712,2]
[402041549,1768491038572,-6438.40598838,0.00017712,2]
[402041550,1768491038581,-9412.99318337,0.00017712,2]
[402041551,1768491038592,-6292.35929456,0.00017712,2]
[402041552,1768491038602,-3531.1815,0.00017712,2]
[402041553,1768491038611,-71801.45330509,0.000179,2]
[402041554,1768491038621,-219.93171436,0.000179,2]
[402041555,1768491038631,-219.2,0.000179,2]
[402041556,1768491038640,-177.60265718,0.000179,2]
[402041557,1768491038650,-479.29612165,0.000179,2]
[402041558,1768491038659,-550.59455016,0.000179,2]
[402041559,1768491038669,-2183.9523961,0.000179,2]
[402041560,1768491038679,-155.0,0.00017999,2]
[402041561,1768491038689,-535552.99941496,0.00018,2]
[402041584,1768491040674,-1122.29435079,0.00018,2]
[402041585,1768491040851,-4681830.20641214,0.00018,2]
[402041591,1768491045887,-59374.05788496,0.00018,2]
[402041592,1768491045914,-287.80291528,0.00018,2]
[402041594,1768491045964,-152111.11168217,0.00018,2]
[402041595,1768491046078,-19103.32177745,0.00018,2]
[402041596,1768491046091,-527.58148494,0.00018,2]
[402041601,1768491046253,-425.2021426,0.00018,2]
[402041603,1768491046265,-18770.97929346,0.00018,2]
[402041611,1768491046320,-522.02000001,0.00018,2]
[402041613,1768491046332,-388080.28944144,0.00018,2]
[402041620,1768491046395,-303.8,0.00018,2]
[402041624,1768491046444,-3000.0,0.00018,2]
[402041625,1768491046455,-31209.18979614,0.00018,2]
[402041626,1768491046468,-400.0,0.00018,2]
[402041627,1768491046480,-6290.80366995,0.00018,2]
[402041628,1768491046490,-1661.96633005,0.00018,2]
[402041634,1768491046824,-1000.0,0.00018,2]
[402041635,1768491047282,-553.29706463,0.00018,2]
[402041636,1768491047294,-1159.3,0.00018,2]
[402041637,1768491047306,-2311.34940759,0.00018,2]
[402041638,1768491047316,-1401.73354854,0.00018,2]
[402041639,1768491047327,-1221.48919033,0.00018,2]
[402041640,1768491047339,-2665.70899487,0.00018,2]
[402041641,1768491047353,-854.68018316,0.00018,2]
[402041707,1768491311122,247.47,0.00026325,120]
[402041708,1768491311651,247.47,0.00029616,120]
[402041710,1768491548543,518.86740065,0.0001602,5]
[402041711,1768491774547,300.0,0.0003,120]
[402041712,1768491802893,500.0,0.0003,120]
[402041713,1768491821375,300.0,0.0003,120]
[402041715,1768492003648,152.72,0.00019178,30]
[402041716,1768492016136,-151.0,0.00016745,2]
[402041717,1768492016157,-333.70255706,0.00016973,2]
[402041725,1768492232487,-151.0,0.00016735,2]
[402041726,1768492232503,-166.29744294,0.00016973,2]
[402041727,1768492232513,-500.0,0.00016973,2]
[402041728,1768492232523,-1000.0,0.00017521,2]
[402041729,1768492232534,-1000.0,0.00017521,2]
[402041730,1768492232544,-166.66,0.00017825,2]
[402041731,1768492232554,-334.0,0.00017872,2]
[402041732,1768492232564,-10535.9014,0.00017873,2]
[402041733,1768492232574,-178.82512279,0.00017894,2]
[402041734,1768492232584,-2587.29258477,0.00017895,2]
[402041735,1768492232594,-433.0,0.00017899,2]
[402041736,1768492232604,-1000.0,0.000179,2]
[402041737,1768492232614,-5151.4583,0.000179,2]
[402041738,1768492232624,-244.95438434,0.000179,2]
[402041739,1768492232633,-177.60265718,0.000179,2]
[402041740,1768492232643,-918.90149509,0.000179,2]
[402041741,1768492232653,-500.0,0.00017973,2]
[402041743,1768492232662,-536.32316389,0.00017973,2]
[402041744,1768492232672,-500.0,0.00017973,2]
[402041745,1768492232682,-321.47728481,0.00017973,2]
[402041746,1768492232695,-500.0,0.00017973,2]
[402041747,1768492232708,-500.0,0.00017973,2]
[402041748,1768492232720,-500.0,0.00017973,2]
[402041749,1768492232730,-150.19463463,0.00017973,2]
[402041750,1768492232740,-500.0,0.00017973,2]
[402041752,1768492232750,-500.0,0.00017973,2]
[402041754,1768492232761,-500.0,0.00017973,2]
[402041755,1768492232771,-500.0,0.00017973,2]
[402041757,1768492232780,-266.18203271,0.00017973,2]
[402041759,1768492232791,-500.0,0.00017973,2]
[402041761,1768492232801,-500.0,0.00017973,2]
[402041763,1768492232811,-500.0,0.00017973,2]
[402041765,1768492232820,-500.0,0.00017973,2]
[402041766,1768492232830,-500.0,0.00017973,2]
[402041768,1768492232839,-500.0,0.00017973,2]
[402041769,1768492232849,-186.35849238,0.00017973,2]
[402041770,1768492232860,-500.0,0.00017973,2]
[402041771,1768492232869,-500.0,0.00017973,2]
[402041772,1768492232879,-500.73390845,0.00017973,2]
[402041774,1768492232888,-500.0,0.00017973,2]
[402041775,1768492232897,-500.0,0.00017973,2]
[402041777,1768492232907,-500.0,0.00017973,2]
[402041779,1768492232916,-500.0,0.00017973,2]
[402041781,1768492232926,-300.0,0.00017973,2]
[402041783,1768492232935,-500.0,0.00017973,2]
[402041784,1768492232949,-500.0,0.00017973,2]
[402041786,1768492232960,-500.0,0.00017973,2]
[402041788,1768492232969,-500.0,0.00017973,2]
[402041790,1768492232979,-500.0,0.00017973,2]
[402041792,1768492232989,-500.0,0.00017973,2]
[402041793,1768492232998,-500.0,0.00017973,2]
[402041795,1768492233007,-500.0,0.00017973,2]
[402041797,1768492233016,-500.0,0.00017973,2]
[402041799,1768492233026,-1047.21,0.0001799,2]
[402041801,1768492233036,-263.12917229,0.0001799,2]
[402041803,1768492233046,-165.17,0.0001799,2]
[402041804,1768492233055,-27312.6309231,0.00017994,2]
[402041806,1768492233064,-7043.73241821,0.00017994,2]
[402041810,1768492233102,-364.18164996,0.00017994,2]
[402041812,1768492233114,-1624.82450063,0.00017994,2]
[402041814,1768492233123,-87240.77688047,0.00017994,2]
[402041816,1768492233135,-297.9,0.00017994,2]
[402041891,1768492240117,-1658.93883262,0.00017994,2]
[402041892,1768492240128,-3926.40750576,0.00017994,2]
[402041893,1768492240139,-2514.32724914,0.00017994,2]
[402041894,1768492240150,-4090.42933613,0.00017994,2]
[402041895,1768492240161,-14682.79795956,0.00017994,2]
[402041896,1768492240185,-1571.63286702,0.00017994,2]
[402041897,1768492240201,-3633.9405487,0.00017994,2]
[402041898,1768492240211,-151.0,0.00017997,2]
[402041899,1768492240221,-1087.31761346,0.00017999,5]
[402041900,1768492240230,-500.0,0.00017999,2]
[402041901,1768492240240,-986506.1090401,0.00018,2]
[402041902,1768492240252,-392797.33739487,0.00018,2]
[402041903,1768492240262,-405.0689839,0.00018,2]
[402041904,1768492240272,-1189.21211485,0.00018,2]
[402041905,1768492240282,-151.0,0.00018,2]
[402041906,1768492240292,-151.0,0.00018,2]
[402041907,1768492240302,-151.0,0.00018,2]
[402041908,1768492240311,-500.0,0.00018068,2]
[402041909,1768492240321,-500.0,0.00018068,2]
[402041910,1768492240331,-166.66,0.000182,2]
[402041911,1768492240340,-166.66,0.00018576,2]
[402041912,1768492240350,-900.0,0.0001863,2]
[402041913,1768492240360,-166.66,0.00018951,2]
[402041914,1768492240369,-204.36630649,0.00019,2]
[402041915,1768492240379,-206.197685,0.00019,2]
[402041916,1768492240388,-166.66,0.00019326,2]
[402041917,1768492240398,-281.05,0.00019528,2]
[402041918,1768492240407,-166.66,0.00019701,2]
[402041919,1768492240417,-155.0,0.00019799,2]
[402041920,1768492240427,-302.94097839,0.000199,4]
[402041921,1768492240436,-166.66,0.00019925,2]
[402041922,1768492240447,-9678.5764282,0.00019939,2]
[402041923,1768492240456,-2004.43417789,0.00019995,2]
[402041924,1768492240466,-178.82512275,0.00020228,2]
[402041925,1768492240476,-151.0,0.00020278,2]
[402041926,1768492240485,-6094.2717119,0.00020281,2]
[402041927,1768492240495,-25879.3523625,0.00020281,2]
[402041928,1768492240505,-810.8417366,0.00020281,2]
[402041929,1768492240514,-2159.5823084,0.00020439,2]
[402041930,1768492240525,-281.05,0.00020505,2]
[402041931,1768492240535,-2015.4764034,0.00020558,2]
[402041934,1768492240544,-166.66,0.00020747,2]
[402041938,1768492240554,-1359.815823,0.00020792,2]
[402041941,1768492240568,-5774.4640371,0.00020792,2]
[402041943,1768492240578,-180.9232465,0.00020792,2]
[402041945,1768492240587,-225.19,0.00020898,2]
[402041946,1768492240597,-449.7135726,0.00021131,2]
[402041947,1768492240606,-500.0,0.00021452,2]
[402041948,1768492240616,-244.95438431,0.00021475,2]
[402041949,1768492240627,-281.05,0.00021481,2]
[402041950,1768492240637,-166.66,0.00021569,2]
[402041951,1768492240646,-158.61718939,0.00021724,2]
[402041952,1768492240655,-1326.13,0.00021954,2]
[402041953,1768492240665,-225.19,0.00022268,2]
[402041954,1768492240676,-166.66,0.00022391,2]
[402041955,1768492240685,-281.05,0.00022458,2]
[402041956,1768492240695,-207.39,0.0002256,2]
[402041957,1768492240706,-178.82512275,0.00022562,2]
[402041958,1768492240716,-166.66,0.00023213,2]
[402041959,1768492240725,-1285.1,0.00023328,2]
[402041960,1768492240735,-281.05,0.00023434,2]
[402041961,1768492240744,-838.98,0.00023852,2]
[402041962,1768492240755,-1466.62060129,0.00024195,2]
[402041963,1768492240769,-980.40055829,0.00024195,2]
[402041964,1768492240778,-550.1826,0.00024195,2]
[402041965,1768492240790,-152.72,0.00024505,30]
[402041966,1768492240800,-245.0,0.00024661,2]
[402041967,1768492240809,-245.0,0.00024685,2]
[402041968,1768492240818,-168.0,0.00024713,2]
[402041969,1768492240828,-30321.3701093,0.000248,2]
[402041970,1768492240838,-1147.0,0.00024871,2]
[402041972,1768492240847,-178.82512275,0.00024896,2]
[402041974,1768492240857,-150.0,0.00024896,2]
[402041976,1768492240866,-389095.58392363,0.000249,2]
[402041982,1768492240918,-5717.06548,0.000249,2]
[402041994,1768492241068,-250.0,0.00023762,2]
[402041995,1768492241078,-684.26057,0.000249,2]
[402041996,1768492241162,-402.21942353,0.000249,2]
[402041997,1768492241173,-377.52272345,0.000249,2]
[402041998,1768492241185,-415.38536651,0.000249,2]
[402041999,1768492241201,-297.0852787,0.000249,2]
[402042642,1768492247368,-219.53,0.000175,2]
[402042644,1768492247378,-3737.92538918,0.000249,2]
[402042646,1768492247387,-197.23459764,0.000249,2]
[402042648,1768492247398,-168.0,0.00024928,2]
[402042649,1768492247408,-192.0,0.00025,2]
[402042650,1768492247418,-244.95438431,0.00025051,2]
[402042651,1768492247428,-5888.0,0.00025158,2]
[402042652,1768492247437,-1147.0,0.00025251,2]
[402042653,1768492247447,-168.0,0.00025258,2]
[402042654,1768492247458,-1147.0,0.00025337,7]
[402042655,1768492247468,-245.0,0.00025354,2]
[402042657,1768492247477,-245.0,0.00025449,2]
[402042659,1768492247487,-245.0,0.0002548,2]
[402042661,1768492247496,-16.90367434,0.00025581,2]
[402042663,1768492247508,-228.09632566,0.00025581,2]
[402042664,1768492247518,-245.0,0.0002559,2]
[402042667,1768492247528,-168.0,0.00025616,2]
[402042668,1768492247538,-245.0,0.00025852,2]
[402042669,1768492247547,-245.0,0.00025871,2]
[402042670,1768492247557,-332.80006875,0.00025874,2]
[402042671,1768492247598,-814.19993125,0.00025874,2]
[402042672,1768492247608,-150.0,0.00025955,2]
[402042673,1768492247618,-245.0,0.0002602,2]
[402042674,1768492247627,-245.0,0.00026042,2]
[402042675,1768492247638,-245.0,0.00026179,2]
[402042676,1768492247649,-90.37368275,0.00026538,2]
[402042677,1768492247661,-62.11631725,0.00026538,2]
[402042678,1768492247670,-195.30871993,0.00026623,2]
[402042679,1768492247759,-304.69128007,0.00026623,2]
[402042680,1768492247768,-168.0,0.00026872,2]
[402042681,1768492247777,-155.71,0.00026873,2]
[402042682,1768492247788,-29.25514562,0.00026941,2]
[402042683,1768492247831,-215.74485438,0.00026941,2]
[402042684,1768492247841,-159.99175386,0.00027,4]
[402042685,1768492247853,-716.80824614,0.00027,4]
[402042686,1768492247862,-500.0,0.00027014,2]
[402042687,1768492247873,-168.0,0.00027066,2]
[402042688,1768492247882,-219.2,0.000271,6]
[402042689,1768492247892,-245.0,0.00027101,7]
[402042690,1768492247901,-999.0,0.00027126,3]
[402042691,1768492247911,-505.0,0.00027137,2]
[402042692,1768492247920,-178.82512275,0.0002723,2]
[402042693,1768492247930,-5000.0,0.00028352,2]
[402042695,1768492247940,-251.35,0.00028362,2]
[402042697,1768492247950,-500.0,0.00028362,20]
[402042699,1768492247962,-155.92,0.00028456,2]
[402042702,1768492247971,-1331.0,0.00028501,2]
[402042703,1768492247981,-1406.0,0.00028501,2]
[402042704,1768492247991,-3469.0,0.00028501,2]
[402042705,1768492248001,-614.0,0.00028501,2]
[402042706,1768492248011,-1267.0,0.00028501,2]
[402042707,1768492248021,-412.0,0.00028501,2]
[402042708,1768492248031,-2438.0,0.00028501,2]
[402042709,1768492248041,-6558.0,0.00028501,2]
[402042710,1768492248050,-1201.0,0.00028501,2]
[402042711,1768492248060,-244.95438431,0.00028626,2]
[402042712,1768492248069,-505.0,0.00029435,4]
[402042713,1768492248079,-178.82512275,0.00029564,2]
[402042714,1768492248089,-152.72,0.00029833,30]
[402042715,1768492248099,-152.49,0.00029855,2]
[402042716,1768492248109,-200.0,0.00029939,2]
[402042717,1768492248119,-161.77313586,0.0003,4]
[402042719,1768492248128,-1000.0,0.00030056,2]
[402042720,1768492248138,-1775.27,0.00030137,7]
[402042722,1768492248148,-163.64,0.0003042,2]
[402042723,1768492248158,-1326.13,0.00030736,2]
[402042724,1768492248167,-207.39,0.00031326,2]
[402042725,1768492248176,-9000.0,0.00031472,2]
[402042726,1768492248186,-9000.0,0.00031472,2]
[402042727,1768492248195,-9000.0,0.00031472,2]
[402042728,1768492248207,-9000.0,0.00031472,2]
[402042729,1768492248217,-9000.0,0.00031472,2]
[402042730,1768492248227,-9000.0,0.00031472,2]
[402042731,1768492248237,-9000.0,0.00031472,2]
[402042732,1768492248247,-187.337,0.00031501,2]
[402042733,1768492248256,-1804.842,0.00031501,2]
[402042734,1768492248266,-5876.228,0.00031501,2]
[402042735,1768492248276,-505.0,0.00031734,7]
[402042736,1768492248285,-1000.0,0.000318,2]
[402042739,1768492248295,-178.82512275,0.00031898,2]
[402042741,1768492248304,-181.01024507,0.00032,120]
[402042743,1768492248315,-200.0,0.00032,120]
[402042744,1768492248324,-244.95438431,0.00032201,2]
[402042745,1768492248333,-158.61718939,0.00032585,2]
[402042746,1768492248343,-353.91841126,0.00032877,7]
[402042750,1768492248642,-845.67,0.000329,14]
[402042751,1768492248671,-247.47,0.00032907,120]
[402042752,1768492248681,-181.01024507,0.00033,120]
[402042753,1768492248691,-10947.0,0.00033023,5]
[402042754,1768492248701,-152.49,0.00033173,2]
[402042755,1768492248712,-219.2,0.000333,10]
[402042756,1768492248725,-161.13,0.00033316,120]
[402042757,1768492248735,-1000.0,0.00033473,2]
[402042758,1768492248745,-269.11818899,0.000338,30]
[402042759,1768492248755,-1000.0,0.00033813,2]
[402042760,1768492248765,-218.70220985,0.0003389,11]
[402042761,1768492248775,-181.01024507,0.000339,120]
[402042762,1768492248784,-200.0,0.00034,120]
[402042763,1768492248795,-505.0,0.00034032,9]
[402042764,1768492248804,-178.82512275,0.00034232,2]
[402042765,1768492248814,-163.64,0.00034799,2]
[402042766,1768492248823,-304.65805755,0.00034828,3]
[402042767,1768492248832,-911.9147324,0.000349,2]
[402042768,1768492248842,-151.0,0.00034997,14]
[402042769,1768492248851,-100000.0,0.00035,6]
[402042770,1768492248861,-100000.0,0.00035,6]
[402042771,1768492248870,-224.93768703,0.00035,120]
[402042772,1768492248879,-1285.1,0.00035109,2]
[402042773,1768492248889,-152.72,0.0003516,30]
[402042774,1768492248898,-161.13,0.00035367,120]
[402042775,1768492248908,-5800.0,0.00035376,2]
[402042776,1768492248917,-5800.0,0.00035385,2]
[402042777,1768492248927,-5800.0,0.00035394,2]
[402042778,1768492248936,-5800.0,0.00035402,2]
[402042779,1768492248946,-392.5,0.00035415,2]
[402042780,1768492248955,-1000.0,0.000355,2]
[402042781,1768492248965,-207.39,0.00035525,2]
[402042782,1768492248974,-911.91473235,0.000357,2]
[402042783,1768492248984,-244.95438431,0.00035777,2]
[402042784,1768492248993,-6426.6466147,0.000358,50]
[402042785,1768492249003,-200.0,0.00036,120]
[402042786,1768492249013,-247.47,0.00036197,120]
[402042787,1768492249022,-2043.086931,0.0003632,120]
[402042788,1768492249031,-505.0,0.00036331,12]
[402042789,1768492249042,-152.49,0.0003649,2]
[402042790,1768492249051,-538.23637797,0.000365,30]
[402042791,1768492249060,-911.91473235,0.000365,2]
[402042792,1768492249069,-178.82512275,0.00036566,2]
[402042793,1768492249078,-911.91473235,0.000373,2]
[402042794,1768492249087,-1000.0,0.0003757,2]
[402042795,1768492249097,-2000.0,0.00038,30]
[402042796,1768492249106,-1660.63792868,0.00038,120]
[402042797,1768492249117,-200.0,0.00038,120]
[402042798,1768492249126,-200.0,0.00038,120]
[402042799,1768492249136,-911.91473235,0.000381,2]
[402042800,1768492249145,-1086.0844155,0.00038355,30]
[402042801,1768492249154,-500.0,0.00038355,2]
[402042802,1768492249164,-500.0,0.00038355,30]
[402042803,1768492249173,-500.0,0.00038355,30]
[402042804,1768492249183,-1000.0,0.00038356,2]
[402042805,1768492249192,-213.99991879,0.00038356,120]
[402042806,1768492249201,-529.48597297,0.00038356,30]
[402042807,1768492249212,-500.0,0.00038356,30]
[402042808,1768492249222,-500.0,0.00038356,30]
[402042809,1768492249231,-500.0,0.00038356,30]
[402042810,1768492249241,-532.69173788,0.00038356,30]
[402042812,1768492249251,-500.0,0.00038356,30]
[402042814,1768492249260,-502.06545397,0.00038356,30]
[402042816,1768492249270,-510.20212179,0.00038356,30]
[402042818,1768492249280,-637.55750849,0.00038356,30]
[402042820,1768492249290,-500.0,0.00038356,30]
[402042821,1768492249300,-500.0,0.00038356,30]
[402042823,1768492249310,-500.0,0.00038356,30]
[402042825,1768492249320,-502.6819439,0.00038356,30]
[402042827,1768492249329,-500.0,0.00038356,30]
[402042829,1768492249339,-500.0,0.00038356,30]
[402042831,1768492249348,-500.0,0.00038356,30]
[402042832,1768492249358,-544.2516501,0.00038356,30]
[402042833,1768492249368,-500.0,0.00038356,30]
[402042834,1768492249380,-537.12411799,0.00038356,30]
[402042835,1768492249391,-500.0,0.00038356,30]
[402042836,1768492249401,-500.98394871,0.00038356,30]
[402042837,1768492249411,-538.24,0.00038356,30]
[402042838,1768492249421,-500.0,0.00038356,30]
[402042839,1768492249431,-500.0,0.00038356,30]
[402042840,1768492249441,-500.0,0.00038356,30]
[402042841,1768492249451,-1060.78,0.00038356,30]
[402042842,1768492249462,-500.0,0.00038356,30]
[402042843,1768492249472,-874.62,0.00038356,30]
[402042844,1768492249482,-544.53,0.00038356,30]
[402042845,1768492249491,-500.0,0.00038356,30]
[402042846,1768492249501,-500.0,0.00038356,30]
[402042847,1768492249511,-500.0,0.00038356,30]
[402042848,1768492249520,-500.0,0.00038356,30]
[402042849,1768492249529,-500.0,0.00038356,30]
[402042850,1768492249539,-572.45,0.00038356,30]
[402042851,1768492249548,-635.36,0.00038356,30]
[402042852,1768492249558,-583.22,0.00038356,30]
[402042853,1768492249567,-500.0,0.00038356,30]
[402042854,1768492249577,-500.0,0.00038356,30]
[402042855,1768492249587,-500.0,0.00038356,30]
[402042856,1768492249596,-500.0,0.00038356,30]
[402042857,1768492249605,-631.87,0.00038356,30]
[402042858,1768492249615,-500.0,0.00038356,30]
[402042859,1768492249624,-660.96,0.00038356,30]
[402042860,1768492249634,-500.0,0.00038356,30]
[402042861,1768492249644,-500.0,0.00038356,30]
[402042862,1768492249653,-500.0,0.00038356,30]
[402042863,1768492249663,-500.0,0.00038356,30]
[402042864,1768492249672,-500.0,0.00038356,30]
[402042865,1768492249682,-500.0,0.00038356,30]
[402042866,1768492249691,-500.0,0.00038356,30]
[402042867,1768492249700,-1147.76,0.00038356,30]
[402042868,1768492249712,-500.0,0.00038356,30]
[402042869,1768492249724,-1023.54,0.00038356,30]
[402042870,1768492249733,-500.0,0.00038356,30]
[402042871,1768492249743,-650.78,0.00038356,30]
[402042872,1768492249753,-500.0,0.00038356,30]
[402042873,1768492249763,-244.83662703,0.00038356,30]
[402042874,1768492249773,-1028.24,0.00038356,30]
[402042875,1768492249783,-500.0,0.00038356,30]
[402042876,1768492249793,-537.13458516,0.00038356,30]
[402042877,1768492249802,-1157.53,0.00038356,30]